[Event "1st Bangalore GM-Open-A 2024"]
[Site "Bangalore"]
[Date "2024.01.24"]
[Round "8.27"]
[White "Audi Ameya"]
[Black "Jake Shanty"]
[Result "1-0"]
[ECO "E06"]
[WhiteElo "2385"]
[BlackElo "1903"]
[Annotator "RC"]
[PlyCount "133"]
[EventDate "2024.01.20"]
[EventType "swiss"]
[EventCountry "IND"]
[SourceTitle "playchess.com"]
[Source "ChessBase"]
[SourceQuality "1"]
[TimeControl "5400+30"]

1. Nf3 {[%emt 0:00:45]} Nf6 {[%emt 0:00:23]} 2. c4 {[%emt 0:00:03]} e6 {[%emt 0:00:46]} 3. g3 {[%emt 0:00:04]} d5 {[%emt 0:00:57]} 4. Bg2 {[%emt 0:00:04]} Be7 {[%emt 0:01:02]} 5. d4 {[%emt 0:00:21]} O-O {[%emt 0:00:59]} 6. Nc3 {[%emt 0:00:05]} c6 {[%emt 0:00:43]} 7. O-O {[%emt 0:00:06]} b6 {[%emt 0:01:05]} 8. Nd2 {[%emt 0:00:35]} Ba6 {[%emt 0:04:08]} 9. b3 {[%emt 0:00:43]} Nbd7 {[%emt 0:17:58]} 10. e4 {[%emt 0:00:06]} Bb7 {[%emt 0:03:27]} 11. Re1 {[%emt 0:10:34]} dxe4 {[%emt 0:17:32]} 12. Ndxe4 {[%emt 0:00:21]} Nxe4 {[%emt 0:00:49]} 13. Nxe4 {[%emt 0:00:03]} Nf6 {[%emt 0:04:53]} 14. Qc2 {[%emt 0:01:35]} Nxe4 {[%emt 0:07:00]} 15. Bxe4 {[%emt 0:00:06]} g6 {[%emt 0:02:06]} 16. Bh6 {[%emt 0:07:04]} Re8 {[%emt 0:00:58]} 17. Rad1 {[%emt 0:00:20]} Bg5 {[%emt 0:05:17]} 18. Bxg5 {[%emt 0:07:02]} Qxg5 {[%emt 0:00:09]} 19. c5 {[%emt 0:00:08]} Red8 {[%emt 0:03:37]} 20. b4 {[%emt 0:02:49]} b5 {[%emt 0:06:03]} 21. a4 {[%emt 0:01:53]} a6 {[%emt 0:01:03]} 22. Re3 {[%emt 0:03:03]} Rd7 {[%emt 0:01:55]} 23. Ra3 {[%emt 0:16:43]} Qd8 {[%emt 0:05:14]} 24. Rad3 {[%emt 0:12:36]} Qf6 {[%emt 0:03:39]} 25. h4 {[%emt 0:00:12]} Rad8 {[%emt 0:02:02]} 26. axb5 {[%emt 0:02:49]} axb5 {[%emt 0:00:13]} 27. Qb2 {[%emt 0:00:24]} h5 {[%emt 0:05:17]} 28. Kg2 {[%emt 0:00:57]} Qg7 {[%emt 0:00:55]} 29. Qc3 {[%emt 0:02:36]} Qf6 {[%emt 0:01:07]} 30. Ra1 {[%emt 0:00:59]} Ra8 {[%emt 0:02:53]} 31. Ra5 {[%emt 0:02:02]} Rdd8 {[%emt 0:01:00]} 32. Rd2 {[%emt 0:01:37]} Kh7 {[%emt 0:00:35]} 33. Qa1 {[%emt 0:05:30]} Qh8 {[%emt 0:00:33]} 34. Rxa8 {[%emt 0:02:55]} Rxa8 {[%emt 0:00:08]} 35. Qd1 {[%emt 0:00:02]} Kg7 {[%emt 0:00:43]} 36. Qf3 {[%emt 0:00:05]} Qc8 {[%emt 0:00:32]} 37. Qf4 {[%emt 0:00:16]} Qb8 {[%emt 0:00:37]} 38. Qe5+ {[%emt 0:01:27]} Qxe5 {[%emt 0:00:35]} 39. dxe5 {[%emt 0:00:03]} Ra4 {[%emt 0:00:09]} 40. Rd4 {[%emt 0:00:06]} Kf8 {[%emt 0:00:17]} 41. Rd8+ {[%emt 0:00:54]} Kg7 {[%emt 0:03:28]} 42. Rd4 {[%emt 0:02:52]} Kf8 {[%emt 0:00:00]} 43. Kf3 {[%emt 0:00:03]} Ke7 {[%emt 0:00:00]} 44. Kf4 {[%emt 0:00:05]} Ra2 {[%emt 0:00:00]} 45. f3 {[%emt 0:00:13]} Ra8 {[%emt 0:00:00]} 46. Kg5 {[%emt 0:00:13]} Ra1 {[%emt 0:00:00]} 47. g4 {[%emt 0:00:46]} Rg1 {[%emt 0:00:00]} 48. Rd6 {[%emt 0:00:25]} hxg4 {[%emt 0:00:24]} 49. fxg4 {[%emt 0:00:03]} Re1 {[%emt 0:00:14]} 50. Kf4 {[%emt 0:03:32]} Rf1+ {[%emt 0:00:18]} 51. Bf3 {[%emt 0:00:08]} Rb1 {[%emt 0:01:30]} 52. Rd4 {[%emt 0:00:04]} Rf1 {[%emt 0:00:12]} 53. h5 {[%emt 0:02:39]} gxh5 {[%emt 0:00:18]} 54. gxh5 {[%emt 0:00:03]} f6 {[%emt 0:00:37]} 55. exf6+ {[%emt 0:04:51]} Kxf6 {[%emt 0:00:08]} 56. Ke3 {[%emt 0:00:05]} Bc8 {[%emt 0:01:24]} 57. Rd8 {[%emt 0:00:32]} Ba6 {[%emt 0:00:07]} 58. Ra8 {[%emt 0:02:09]} Bb7 {[%emt 0:00:09]} 59. Ra7 {[%emt 0:00:03]} Bc8 {[%emt 0:00:07]} 60. Rc7 {[%emt 0:00:03]} Ba6 {[%emt 0:00:06]} 61. h6 {[%emt 0:00:13]} Re1+ {[%emt 0:00:47]} 62. Kf2 {[%emt 0:00:14]} Rb1 {[%emt 0:00:18]} 63. h7 {[%emt 0:00:03]} Rb2+ {[%emt 0:00:05]} 64. Kg3 {[%emt 0:00:07]} Rxb4 {[%emt 0:00:09]} 65. h8=Q+ {[%emt 0:00:06]} Kg6 {[%emt 0:00:08]} 66. Qh5+ {[%emt 0:00:08]} Kf6 {[%emt 0:00:04]} 67. Rf7# {[%emt 0:00:04]} 1-0

[Event "1st Bangalore GM-Open-A 2024"]
[Site "Bangalore"]
[Date "2024.01.24"]
[Round "8.28"]
[White "Kumar, Gaurav"]
[Black "Nitin, S.."]
[Result "1/2-1/2"]
[ECO "A15"]
[WhiteElo "1953"]
[BlackElo "2385"]
[Annotator "RC"]
[PlyCount "134"]
[EventDate "2024.01.20"]
[EventType "swiss"]
[EventCountry "IND"]
[SourceTitle "playchess.com"]
[Source "ChessBase"]
[SourceQuality "1"]
[TimeControl "5400+30"]

1. Nf3 {[%emt 0:06:35]} Nf6 {[%emt 0:00:51]} 2. c4 {[%emt 0:00:40]} g6 {[%emt 0:00:43]} 3. b4 {[%emt 0:00:32]} Bg7 {[%emt 0:00:12]} 4. Bb2 {[%emt 0:00:10]} d6 {[%emt 0:00:16]} 5. g3 {[%emt 0:00:22]} e5 {[%emt 0:01:15]} 6. Bg2 {[%emt 0:00:25]} O-O {[%emt 0:00:17]} 7. d3 {[%emt 0:00:35]} Nh5 {[%emt 0:00:18]} 8. Nc3 {[%emt 0:00:53]} f5 {[%emt 0:00:05]} 9. O-O {[%emt 0:00:32]} Nc6 {[%emt 0:01:34]} 10. b5 {[%emt 0:02:23]} Ne7 {[%emt 0:00:52]} 11. Qb3 {[%emt 0:00:12]} Kh8 {[%emt 0:04:18]} 12. c5 {[%emt 0:00:34]} h6 {[%emt 0:07:18]} 13. cxd6 {[%emt 0:12:50]} cxd6 {[%emt 0:00:05]} 14. Na4 {[%emt 0:08:11]} a6 {[%emt 0:07:27]} 15. bxa6 {[%emt 0:04:48]} Rxa6 {[%emt 0:00:30]} 16. Nd2 {[%emt 0:01:44]} Bd7 {[%emt 0:02:02]} 17. Nc3 {[%emt 0:02:13]} Bc6 {[%emt 0:00:30]} 18. a4 {[%emt 0:01:22]} Nf6 {[%emt 0:05:11]} 19. Nc4 {[%emt 0:07:50]} f4 {[%emt 0:11:00]} 20. Nb5 {[%emt 0:18:22]} Nf5 {[%emt 0:05:50]} 21. Rac1 {[%emt 0:08:51]} h5 {[%emt 0:04:58]} 22. Nd2 {[%emt 0:09:10]} h4 {[%emt 0:03:30]} 23. gxf4 {[%emt 0:05:27]} Nh5 {[%emt 0:05:15]} 24. e3 {[%emt 0:00:31]} exf4 {[%emt 0:00:14]} 25. Bxg7+ {[%emt 0:00:19]} Nfxg7 {[%emt 0:00:16]} 26. Bxc6 {[%emt 0:03:12]} bxc6 {[%emt 0:00:54]} 27. Nd4 {[%emt 0:00:07]} Qd7 {[%emt 0:11:59]} 28. N4f3 {[%emt 0:01:10]} fxe3 {[%emt 0:08:34]} 29. fxe3 {[%emt 0:00:02]} Qg4+ {[%emt 0:00:10]} 30. Kh1 {[%emt 0:00:16]} Nf5 {[%emt 0:00:12]} 31. Rf2 {[%emt 0:01:51]} Qxa4 {[%emt 0:07:32]} 32. Qb2+ {[%emt 0:00:49]} Nfg7 {[%emt 0:00:26]} 33. Rg1 {[%emt 0:01:21]} Qa2 {[%emt 0:03:03]} 34. Qb7 {[%emt 0:01:26]} Raa8 {[%emt 0:07:55]} 35. Qxc6 {[%emt 0:00:36]} Qe6 {[%emt 0:00:07]} 36. Rfg2 {[%emt 0:01:10]} Rac8 {[%emt 0:00:56]} 37. Qb6 {[%emt 0:00:38]} Qh3 {[%emt 0:01:49]} 38. Ng5 {[%emt 0:00:26]} Qd7 {[%emt 0:00:09]} 39. Qd4 {[%emt 0:00:13]} h3 {[%emt 0:00:09]} 40. Nxh3 {[%emt 0:00:39]} Qxh3 {[%emt 0:00:10]} 41. Rxg6 {[%emt 0:00:03]} Rf7 {[%emt 0:00:57]} 42. Qd5 {[%emt 0:01:17]} Kg8 {[%emt 0:01:04]} 43. Qxd6 {[%emt 0:00:37]} Qxe3 {[%emt 0:00:21]} 44. Ne4 {[%emt 0:00:27]} Qf3+ {[%emt 0:00:27]} 45. R6g2 {[%emt 0:00:02]} Qf4 {[%emt 0:00:43]} 46. Qg6 {[%emt 0:00:17]} Qf5 {[%emt 0:00:20]} 47. Qxf5 {[%emt 0:00:43]} Rxf5 {[%emt 0:00:03]} 48. Nd6 {[%emt 0:00:08]} Rcf8 {[%emt 0:00:17]} 49. Nxf5 {[%emt 0:00:20]} Rxf5 {[%emt 0:00:01]} 50. Rg5 {[%emt 0:00:28]} Kf7 {[%emt 0:00:23]} 51. Rxf5+ {[%emt 0:00:28]} Nxf5 {[%emt 0:00:02]} 52. Ra1 {[%emt 0:00:41]} Kf6 {[%emt 0:00:08]} 53. Ra3 {[%emt 0:00:47]} Nf4 {[%emt 0:00:29]} 54. Kg1 {[%emt 0:00:29]} Ne2+ {[%emt 0:01:18]} 55. Kf2 {[%emt 0:00:54]} Ned4 {[%emt 0:00:01]} 56. Ra8 {[%emt 0:00:30]} Kg5 {[%emt 0:00:04]} 57. Ke1 {[%emt 0:00:10]} Nf3+ {[%emt 0:00:17]} 58. Ke2 {[%emt 0:00:59]} Nxh2 {[%emt 0:00:04]} 59. Rh8 {[%emt 0:00:30]} Ng4 {[%emt 0:00:11]} 60. Kf3 {[%emt 0:00:12]} Nf6 {[%emt 0:00:24]} 61. Rd8 {[%emt 0:00:25]} Nh4+ {[%emt 0:00:29]} 62. Ke3 {[%emt 0:00:07]} Nf5+ {[%emt 0:00:05]} 63. Kd2 {[%emt 0:00:09]} Ne7 {[%emt 0:00:29]} 64. Kc3 {[%emt 0:00:18]} Kf5 {[%emt 0:00:17]} 65. Kc4 {[%emt 0:00:10]} Ke6 {[%emt 0:00:12]} 66. Kc5 {[%emt 0:00:16]} Nd7+ {[%emt 0:00:12]} 67. Kb5 {[%emt 0:01:33]} Ke5 {[%emt 0:01:30]} 1/2-1/2

[Event "1st Bangalore GM-Open-A 2024"]
[Site "Bangalore"]
[Date "2024.01.24"]
[Round "8.29"]
[White "Stany, G.A."]
[Black "Prasad, Devaki V"]
[Result "0-1"]
[ECO "C45"]
[WhiteElo "2459"]
[BlackElo "2229"]
[Annotator "RC"]
[PlyCount "76"]
[EventDate "2024.01.20"]
[EventType "swiss"]
[EventCountry "IND"]
[SourceTitle "playchess.com"]
[Source "ChessBase"]
[SourceQuality "1"]
[TimeControl "5400+30"]

1. e4 {[%emt 0:00:30]} e5 {[%emt 0:00:30]} 2. Nf3 {[%emt 0:00:30]} Nc6 {[%emt 0:00:30]} 3. d4 {[%emt 0:00:30]} exd4 {[%emt 0:00:30]} 4. Nxd4 {[%emt 0:00:30]} Nf6 {[%emt 0:00:30]} 5. Nxc6 {[%emt 0:00:30]} bxc6 {[%emt 0:00:30]} 6. e5 {[%emt 0:00:30]} Qe7 {[%emt 0:00:30]} 7. Qe2 {[%emt 0:00:30]} Nd5 {[%emt 0:00:30]} 8. h4 {[%emt 0:00:30]} f6 {[%emt 0:00:30]} 9. c4 {[%emt 0:00:30]} Ba6 {[%emt 0:00:30]} 10. Rh3 {[%emt 0:00:30]} fxe5 {[%emt 0:00:30]} 11. Bg5 {[%emt 0:00:30]} Nf6 {[%emt 0:00:30]} 12. Re3 {[%emt 0:00:30]} Qb4+ {[%emt 0:00:30]} 13. Nd2 {[%emt 0:00:30]} O-O-O {[%emt 0:00:30]} 14. a3 {[%emt 0:00:30]} Qa4 {[%emt 0:00:30]} 15. Rxe5 {[%emt 0:00:30]} Bd6 {[%emt 0:00:30]} 16. Rf5 {[%emt 0:00:30]} Qc2 {[%emt 0:00:30]} 17. Qd3 {[%emt 0:00:30]} Rde8+ {[%emt 0:00:30]} 18. Be3 {[%emt 0:00:30]} Rxe3+ {[%emt 0:00:30]} 19. fxe3 {[%emt 0:00:30]} Bg3+ {[%emt 0:30:58]} 20. Ke2 {[%emt 0:39:18]} Bxc4 {[%emt 0:00:20]} 21. Qxc4 {[%emt 0:00:03]} Qxf5 {[%emt 0:00:05]} 22. Nf3 {[%emt 0:13:35]} Re8 {[%emt 0:01:22]} 23. Kd2 {[%emt 0:00:05]} Ne4+ {[%emt 0:20:10]} 24. Kc1 {[%emt 0:05:26]} Nd6 {[%emt 0:00:26]} 25. Bd3 {[%emt 0:11:24]} Nxc4 {[%emt 0:05:12]} 26. Bxf5 {[%emt 0:00:05]} Nxe3 {[%emt 0:03:10]} 27. Bh3 {[%emt 0:00:21]} Nd5 {[%emt 0:01:09]} 28. Kd2 {[%emt 0:04:22]} Nf4 {[%emt 0:10:24]} 29. Bf5 {[%emt 0:02:47]} Re2+ {[%emt 0:01:04]} 30. Kc3 {[%emt 0:00:08]} g6 {[%emt 0:01:01]} 31. Bc2 {[%emt 0:00:05]} Nxg2 {[%emt 0:01:02]} 32. Ng5 {[%emt 0:00:33]} Be5+ {[%emt 0:02:38]} 33. Kb3 {[%emt 0:00:27]} Ne1 {[%emt 0:04:52]} 34. Rxe1 {[%emt 0:02:24]} Rxe1 {[%emt 0:00:08]} 35. Nxh7 {[%emt 0:00:03]} Re2 {[%emt 0:00:35]} 36. Nf8 {[%emt 0:00:06]} Bf6 {[%emt 0:00:56]} 37. Nxg6 {[%emt 0:00:12]} Rh2 {[%emt 0:00:10]} 38. a4 {[%emt 0:02:50]} Kd8 {[%emt 0:00:48]} 0-1

[Event "1st Bangalore GM-Open-A 2024"]
[Site "Bangalore"]
[Date "2024.01.24"]
[Round "8.30"]
[White "Rosh Jain"]
[Black "Kaustuv, Kundu"]
[Result "1/2-1/2"]
[ECO "B78"]
[WhiteElo "2221"]
[BlackElo "2423"]
[Annotator "RC"]
[PlyCount "91"]
[EventDate "2024.01.20"]
[EventType "swiss"]
[EventCountry "IND"]
[SourceTitle "playchess.com"]
[Source "ChessBase"]
[SourceQuality "1"]
[TimeControl "5400+30"]

1. e4 {[%emt 0:00:02]} c5 {[%emt 0:06:47]} 2. Nf3 {[%emt 0:00:06]} Nc6 {[%emt 0:00:05]} 3. d4 {[%emt 0:00:07]} cxd4 {[%emt 0:00:06]} 4. Nxd4 {[%emt 0:00:05]} g6 {[%emt 0:00:19]} 5. Nc3 {[%emt 0:00:20]} Bg7 {[%emt 0:00:06]} 6. Be3 {[%emt 0:00:05]} Nf6 {[%emt 0:00:05]} 7. Bc4 {[%emt 0:00:27]} O-O {[%emt 0:00:07]} 8. Bb3 {[%emt 0:00:33]} d6 {[%emt 0:00:36]} 9. f3 {[%emt 0:00:09]} Bd7 {[%emt 0:00:12]} 10. Qd2 {[%emt 0:00:06]} Rc8 {[%emt 0:00:10]} 11. O-O-O {[%emt 0:00:25]} Nxd4 {[%emt 0:00:21]} 12. Bxd4 {[%emt 0:00:09]} b5 {[%emt 0:00:05]} 13. e5 {[%emt 0:36:42]} dxe5 {[%emt 0:00:10]} 14. Bxe5 {[%emt 0:01:42]} Bc6 {[%emt 0:00:06]} 15. Qxd8 {[%emt 0:01:33]} Rfxd8 {[%emt 0:00:05]} 16. Rxd8+ {[%emt 0:00:34]} Rxd8 {[%emt 0:00:05]} 17. Rd1 {[%emt 0:00:22]} Bh6+ {[%emt 0:00:05]} 18. Kb1 {[%emt 0:00:16]} Rxd1+ {[%emt 0:00:09]} 19. Nxd1 {[%emt 0:00:04]} Nd7 {[%emt 0:00:05]} 20. Bg3 {[%emt 0:02:26]} Nc5 {[%emt 0:04:14]} 21. Bf2 {[%emt 0:01:42]} Nxb3 {[%emt 0:00:18]} 22. axb3 {[%emt 0:00:16]} a6 {[%emt 0:00:38]} 23. Be3 {[%emt 0:00:54]} Bg7 {[%emt 0:00:48]} 24. Nf2 {[%emt 0:02:07]} f5 {[%emt 0:03:33]} 25. Nd3 {[%emt 0:03:13]} e5 {[%emt 0:01:48]} 26. h4 {[%emt 0:11:03]} Kf7 {[%emt 0:14:12]} 27. b4 {[%emt 0:02:17]} e4 {[%emt 0:06:14]} 28. fxe4 {[%emt 0:00:20]} Bxe4 {[%emt 0:00:03]} 29. g3 {[%emt 0:03:53]} Bxd3 {[%emt 0:03:43]} 30. cxd3 {[%emt 0:00:06]} Ke6 {[%emt 0:00:30]} 31. Kc2 {[%emt 0:00:48]} Kd5 {[%emt 0:00:58]} 32. Bd2 {[%emt 0:02:31]} Be5 {[%emt 0:17:44]} 33. Bf4 {[%emt 0:02:37]} Bd4 {[%emt 0:03:21]} 34. Kc1 {[%emt 0:01:33]} Bf6 {[%emt 0:01:35]} 35. Kc2 {[%emt 0:01:19]} Be7 {[%emt 0:04:45]} 36. Kc3 {[%emt 0:00:20]} Bd6 {[%emt 0:01:33]} 37. Bxd6 {[%emt 0:01:07]} Kxd6 {[%emt 0:00:01]} 38. Kd4 {[%emt 0:00:49]} h6 {[%emt 0:00:06]} 39. Ke3 {[%emt 0:09:36]} g5 {[%emt 0:00:39]} 40. h5 {[%emt 0:00:19]} Kd5 {[%emt 0:03:40]} 41. Ke2 {[%emt 0:01:05]} Kd4 {[%emt 0:04:26]} 42. Kd2 {[%emt 0:00:18]} Kd5 {[%emt 0:02:10]} 43. Ke2 {[%emt 0:00:18]} Kd6 {[%emt 0:01:16]} 44. Ke3 {[%emt 0:00:35]} Ke5 {[%emt 0:00:04]} 45. Kf3 {[%emt 0:00:25]} Kd6 {[%emt 0:00:29]} 46. Ke3 {[%emt 0:00:10]} 1/2-1/2

[Event "1st Bangalore GM-Open-A 2024"]
[Site "Bangalore"]
[Date "2024.01.24"]
[Round "8.31"]
[White "Vishnu Prasanna. V"]
[Black "Patil Harshal"]
[Result "1-0"]
[ECO "B12"]
[WhiteElo "2413"]
[BlackElo "2182"]
[Annotator "RC"]
[PlyCount "73"]
[EventDate "2024.01.20"]
[EventType "swiss"]
[EventCountry "IND"]
[SourceTitle "playchess.com"]
[Source "ChessBase"]
[SourceQuality "1"]
[TimeControl "5400+30"]

1. e4 {[%emt 0:00:36]} c6 {[%emt 0:00:04]} 2. d4 {[%emt 0:00:04]} d5 {[%emt 0:00:05]} 3. e5 {[%emt 0:00:04]} c5 {[%emt 0:00:09]} 4. dxc5 {[%emt 0:00:05]} Nc6 {[%emt 0:02:11]} 5. c3 {[%emt 0:01:39]} e6 {[%emt 0:00:44]} 6. Bf4 {[%emt 0:01:06]} Bxc5 {[%emt 0:01:27]} 7. b4 {[%emt 0:01:26]} Bb6 {[%emt 0:02:51]} 8. Qg4 {[%emt 0:01:00]} Kf8 {[%emt 0:03:06]} 9. b5 {[%emt 0:05:22]} h5 {[%emt 0:06:25]} 10. Qg3 {[%emt 0:04:51]} Nce7 {[%emt 0:00:32]} 11. Bd3 {[%emt 0:05:56]} Nh6 {[%emt 0:00:33]} 12. Bxh6 {[%emt 0:07:01]} Rxh6 {[%emt 0:00:09]} 13. Nf3 {[%emt 0:00:02]} a6 {[%emt 0:11:14]} 14. bxa6 {[%emt 0:01:46]} bxa6 {[%emt 0:00:04]} 15. O-O {[%emt 0:00:06]} a5 {[%emt 0:01:29]} 16. Na3 {[%emt 0:03:04]} Ba6 {[%emt 0:04:13]} 17. Bxa6 {[%emt 0:02:03]} Rxa6 {[%emt 0:00:03]} 18. Nd4 {[%emt 0:05:38]} Bxd4 {[%emt 0:14:22]} 19. cxd4 {[%emt 0:00:25]} Nf5 {[%emt 0:00:28]} 20. Qd3 {[%emt 0:00:09]} Rc6 {[%emt 0:00:38]} 21. Nb5 {[%emt 0:07:29]} Rg6 {[%emt 0:04:28]} 22. g3 {[%emt 0:00:07]} Qg5 {[%emt 0:09:28]} 23. Qa3+ {[%emt 0:03:51]} Kg8 {[%emt 0:00:54]} 24. Rac1 {[%emt 0:00:41]} Rxc1 {[%emt 0:06:36]} 25. Rxc1 {[%emt 0:00:06]} Qd2 {[%emt 0:04:30]} 26. Qc3 {[%emt 0:03:02]} Qxa2 {[%emt 0:03:43]} 27. Nd6 {[%emt 0:00:14]} Nh6 {[%emt 0:02:50]} 28. h3 {[%emt 0:09:46]} a4 {[%emt 0:02:51]} 29. Qf3 {[%emt 0:07:22]} a3 {[%emt 0:05:16]} 30. Rc8+ {[%emt 0:04:29]} Kh7 {[%emt 0:00:01]} 31. Nxf7 {[%emt 0:00:07]} Qb1+ {[%emt 0:00:46]} 32. Kh2 {[%emt 0:00:49]} Nxf7 {[%emt 0:01:06]} 33. Qxf7 {[%emt 0:00:04]} a2 {[%emt 0:01:29]} 34. Qg8+ {[%emt 0:02:35]} Kh6 {[%emt 0:00:02]} 35. Qh8+ {[%emt 0:00:05]} Kg5 {[%emt 0:00:06]} 36. Rf8 {[%emt 0:00:02]} Rf6 {[%emt 0:04:03]} 37. Rxf6 {[%emt 0:00:43]} 1-0

[Event "1st Bangalore GM-Open-A 2024"]
[Site "Bangalore"]
[Date "2024.01.24"]
[Round "8.32"]
[White "Panda Sambit"]
[Black "Alekhya Mukhopadhyay"]
[Result "0-1"]
[ECO "A80"]
[WhiteElo "2404"]
[BlackElo "2184"]
[Annotator "RC"]
[PlyCount "184"]
[EventDate "2024.01.20"]
[EventType "swiss"]
[EventCountry "IND"]
[SourceTitle "playchess.com"]
[Source "ChessBase"]
[SourceQuality "1"]
[TimeControl "5400+30"]

1. d4 {[%emt 0:01:02]} f5 {[%emt 0:00:12]} 2. Bg5 {[%emt 0:02:08]} h6 {[%emt 0:00:17]} 3. Bh4 {[%emt 0:00:05]} g5 {[%emt 0:00:17]} 4. e3 {[%emt 0:00:02]} Nf6 {[%emt 0:00:21]} 5. Bg3 {[%emt 0:00:06]} d6 {[%emt 0:01:20]} 6. Nc3 {[%emt 0:05:10]} e6 {[%emt 0:01:24]} 7. h4 {[%emt 0:00:54]} Rg8 {[%emt 0:00:44]} 8. Be2 {[%emt 0:03:33]} Qe7 {[%emt 0:01:13]} 9. hxg5 {[%emt 0:02:49]} hxg5 {[%emt 0:00:25]} 10. Nf3 {[%emt 0:00:04]} Nc6 {[%emt 0:01:54]} 11. a4 {[%emt 0:06:39]} Bd7 {[%emt 0:03:13]} 12. a5 {[%emt 0:00:41]} a6 {[%emt 0:01:02]} 13. b4 {[%emt 0:30:14]} Nxb4 {[%emt 0:13:21]} 14. Qb1 {[%emt 0:01:35]} d5 {[%emt 0:11:52]} 15. Ne5 {[%emt 0:01:21]} c5 {[%emt 0:12:07]} 16. Nxd7 {[%emt 0:00:44]} Nxd7 {[%emt 0:01:26]} 17. Ra4 {[%emt 0:13:29]} b5 {[%emt 0:11:55]} 18. axb6 {[%emt 0:02:12]} Nxb6 {[%emt 0:00:12]} 19. Rxa6 {[%emt 0:03:46]} Rxa6 {[%emt 0:02:29]} 20. Bxa6 {[%emt 0:04:20]} cxd4 {[%emt 0:00:44]} 21. Bb5+ {[%emt 0:04:21]} Kf7 {[%emt 0:06:13]} 22. Qd1 {[%emt 0:06:15]} dxc3 {[%emt 0:05:01]} 23. Rh7+ {[%emt 0:03:18]} Bg7 {[%emt 0:20:07]} 24. Qh5+ {[%emt 0:00:01]} Kf6 {[%emt 0:00:22]} 25. f4 {[%emt 0:00:37]} Qf8 {[%emt 0:00:39]} 26. Qxg5+ {[%emt 0:00:11]} Kf7 {[%emt 0:00:04]} 27. Bh4 {[%emt 0:00:10]} Rh8 {[%emt 0:01:41]} 28. Qh5+ {[%emt 0:03:40]} Kg8 {[%emt 0:00:10]} 29. Rxh8+ {[%emt 0:00:07]} Bxh8 {[%emt 0:00:04]} 30. Qg6+ {[%emt 0:00:49]} Qg7 {[%emt 0:01:32]} 31. Qxe6+ {[%emt 0:00:47]} Kh7 {[%emt 0:00:26]} 32. Kf2 {[%emt 0:04:30]} Nc4 {[%emt 0:02:51]} 33. Be8 {[%emt 0:00:46]} Nxe3 {[%emt 0:00:40]} 34. Qxe3 {[%emt 0:00:31]} Qd4 {[%emt 0:00:38]} 35. Ba4 {[%emt 0:00:26]} Qxe3+ {[%emt 0:00:28]} 36. Kxe3 {[%emt 0:00:07]} d4+ {[%emt 0:00:14]} 37. Ke2 {[%emt 0:00:05]} Kh6 {[%emt 0:00:32]} 38. Bg5+ {[%emt 0:01:00]} Kh5 {[%emt 0:00:28]} 39. Kf3 {[%emt 0:00:47]} Kg6 {[%emt 0:00:06]} 40. Be8+ {[%emt 0:00:22]} Kh7 {[%emt 0:00:54]} 41. Bd7 {[%emt 0:00:26]} Kg6 {[%emt 0:00:49]} 42. g4 {[%emt 0:00:38]} d3 {[%emt 0:00:28]} 43. gxf5+ {[%emt 0:00:34]} Kf7 {[%emt 0:00:31]} 44. Be6+ {[%emt 0:00:17]} Ke8 {[%emt 0:00:10]} 45. f6 {[%emt 0:00:47]} Bxf6 {[%emt 0:00:20]} 46. Bh6 {[%emt 0:00:26]} Nxc2 {[%emt 0:00:33]} 47. Ke4 {[%emt 0:00:32]} Nd4 {[%emt 0:00:38]} 48. Bg4 {[%emt 0:00:32]} Nf5 {[%emt 0:00:43]} 49. Kxd3 {[%emt 0:00:29]} Nxh6 {[%emt 0:00:06]} 50. Be6 {[%emt 0:00:30]} Ke7 {[%emt 0:00:05]} 51. Bb3 {[%emt 0:00:11]} Nf5 {[%emt 0:00:15]} 52. Ke4 {[%emt 0:00:05]} Nd4 {[%emt 0:00:14]} 53. Ba4 {[%emt 0:00:36]} c2 {[%emt 0:00:04]} 54. Bxc2 {[%emt 0:00:02]} Nxc2 {[%emt 0:00:04]} 55. f5 {[%emt 0:00:05]} Nd4 {[%emt 0:00:03]} 56. Kd5 {[%emt 0:00:08]} Nxf5 {[%emt 0:00:04]} 57. Ke4 {[%emt 0:00:04]} Ke6 {[%emt 0:00:03]} 58. Kf4 {[%emt 0:00:03]} Nd6 {[%emt 0:00:11]} 59. Kg4 {[%emt 0:00:32]} Ke5 {[%emt 0:00:18]} 60. Kf3 {[%emt 0:00:11]} Ne4 {[%emt 0:00:07]} 61. Kg4 {[%emt 0:00:10]} Nd2 {[%emt 0:00:24]} 62. Kg3 {[%emt 0:00:14]} Kf5 {[%emt 0:00:12]} 63. Kf2 {[%emt 0:02:14]} Ke4 {[%emt 0:00:03]} 64. Kg3 {[%emt 0:00:09]} Nf3 {[%emt 0:00:06]} 65. Kh3 {[%emt 0:00:32]} Kf4 {[%emt 0:00:21]} 66. Kg2 {[%emt 0:00:07]} Ke3 {[%emt 0:00:23]} 67. Kg3 {[%emt 0:00:59]} Ne5 {[%emt 0:00:03]} 68. Kg2 {[%emt 0:00:08]} Bh4 {[%emt 0:00:09]} 69. Kh3 {[%emt 0:00:16]} Bf2 {[%emt 0:00:07]} 70. Kg2 {[%emt 0:00:07]} Ke2 {[%emt 0:00:05]} 71. Kh2 {[%emt 0:01:10]} Kf3 {[%emt 0:00:59]} 72. Kh1 {[%emt 0:00:09]} Bg3 {[%emt 0:00:17]} 73. Kg1 {[%emt 0:00:05]} Nd3 {[%emt 0:00:06]} 74. Kf1 {[%emt 0:00:18]} Nf2 {[%emt 0:00:05]} 75. Kg1 {[%emt 0:00:03]} Bf4 {[%emt 0:00:05]} 76. Kf1 {[%emt 0:00:04]} Bh2 {[%emt 0:00:04]} 77. Ke1 {[%emt 0:00:03]} Ne4 {[%emt 0:00:08]} 78. Kd1 {[%emt 0:00:55]} Ke3 {[%emt 0:00:06]} 79. Kc2 {[%emt 0:01:27]} Nd2 {[%emt 0:00:05]} 80. Kc3 {[%emt 0:01:13]} Bd6 {[%emt 0:00:04]} 81. Kc2 {[%emt 0:02:02]} Bb4 {[%emt 0:00:03]} 82. Kd1 {[%emt 0:00:21]} Nf3 {[%emt 0:00:04]} 83. Kc2 {[%emt 0:00:09]} Nd4+ {[%emt 0:00:03]} 84. Kd1 {[%emt 0:00:21]} Kd3 {[%emt 0:00:26]} 85. Kc1 {[%emt 0:00:04]} Ke2 {[%emt 0:00:04]} 86. Kb1 {[%emt 0:00:21]} Kd1 {[%emt 0:00:29]} 87. Kb2 {[%emt 0:00:10]} Kd2 {[%emt 0:00:03]} 88. Kb1 {[%emt 0:00:11]} Ba3 {[%emt 0:00:13]} 89. Ka2 {[%emt 0:00:15]} Bc1 {[%emt 0:00:03]} 90. Kb1 {[%emt 0:00:04]} Kd1 {[%emt 0:00:04]} 91. Ka1 {[%emt 0:00:32]} Kc2 {[%emt 0:00:08]} 92. Ka2 {[%emt 0:00:05]} Ne2 {[%emt 0:00:11]} 0-1